bitfinex/quotes_BTCUSD_20250526
["timestamp","ask_amount","ask_price","bid_price","bid_amount"]
[1748233680922,0.0164,109490.0,109470.0,0.06204921]
[1748233681619,0.81668243,109500.0,109470.0,0.06204921]
[1748233681996,0.81668243,109500.0,109470.0,0.06104921]
[1748233682195,0.89835564,109500.0,109470.0,0.06104921]
[1748233682396,0.89835564,109500.0,109470.0,0.06204921]
[1748233683705,0.81668243,109500.0,109470.0,0.06104921]
[1748233683944,0.81668243,109500.0,109470.0,0.06204921]
[1748233685662,0.81668243,109500.0,109470.0,0.04594921]
[1748233685809,0.81668243,109500.0,109480.0,0.0161]
[1748233686943,0.81868243,109500.0,109480.0,0.0161]
[1748233687270,0.81968243,109500.0,109480.0,0.0161]
[1748233688058,0.26982556,109500.0,109480.0,0.0161]
[1748233688228,0.81968243,109500.0,109480.0,0.0161]
[1748233691226,0.67040243,109490.0,109470.0,0.02914921]
[1748233691443,0.54985687,109480.0,109470.0,0.02914921]
[1748233691652,0.63940243,109480.0,109470.0,0.02914921]
[1748233691858,0.63940243,109480.0,109460.0,0.0326]
[1748233693354,0.63940243,109480.0,109470.0,0.001]
[1748233693792,0.63940243,109480.0,109460.0,0.0326]
[1748233694065,0.63940243,109480.0,109460.0,0.0346]
[1748233694367,0.63940243,109480.0,109460.0,0.0336]
[1748233694568,0.65580243,109480.0,109470.0,0.001]
[1748233694904,0.65580243,109480.0,109460.0,0.0336]
[1748233695141,0.65580243,109480.0,109460.0,0.0356]
[1748233695464,0.64980243,109480.0,109460.0,0.0356]
[1748233696314,0.64980243,109480.0,109460.0,0.0346]
[1748233697062,0.64980243,109480.0,109460.0,0.0326]
[1748233697482,0.64980243,109480.0,109470.0,0.001]
[1748233697660,0.64980243,109480.0,109460.0,0.0326]
[1748233697820,0.64980243,109480.0,109460.0,0.0336]
[1748233698645,0.56555687,109470.0,109460.0,0.001]
[1748233699591,0.54985687,109470.0,109460.0,0.001]
[1748233699898,0.81688243,109480.0,109460.0,0.00149726]
[1748233700095,0.81688243,109480.0,109460.0,0.00049726]
[1748233700408,0.81688243,109480.0,109460.0,0.00149726]
[1748233700698,0.81688243,109480.0,109460.0,0.00049726]
[1748233701231,0.81688243,109480.0,109460.0,0.00149726]
[1748233702410,0.81088243,109480.0,109460.0,0.00149726]
[1748233703552,0.81088243,109480.0,109460.0,0.01709726]
[1748233704632,0.26102556,109480.0,109460.0,0.01709726]
[1748233704840,0.81088243,109480.0,109460.0,0.01709726]
[1748233707419,0.26102556,109480.0,109460.0,0.01709726]
[1748233707630,0.81088243,109480.0,109460.0,0.01709726]
[1748233709323,0.81088243,109480.0,109460.0,0.03249726]
[1748233709521,0.80488243,109480.0,109460.0,0.01709726]
[1748233709775,0.25502556,109480.0,109460.0,0.01709726]
[1748233709982,0.80488243,109480.0,109460.0,0.01709726]
[1748233710238,0.78898243,109480.0,109460.0,0.03319726]
[1748233713186,0.80418243,109480.0,109460.0,0.03319726]
[1748233714490,0.015,109470.0,109460.0,0.00149726]
[1748233714692,0.56485687,109470.0,109460.0,0.00149726]
[1748233715745,0.015,109470.0,109460.0,0.00149726]
[1748233715956,0.015,109470.0,109460.0,0.00049726]
[1748233716133,0.015,109470.0,109460.0,0.00149726]
[1748233716815,0.78858243,109480.0,109460.0,0.00149726]
[1748233718545,0.54985687,109470.0,109460.0,0.00149726]
[1748233718773,0.78858243,109480.0,109460.0,0.00149726]
[1748233719171,0.78858243,109480.0,109460.0,0.00049726]
[1748233719375,0.78858243,109480.0,109460.0,0.00149726]
[1748233719575,0.65810243,109480.0,109460.0,0.00149726]
[1748233719776,0.07754556,109480.0,109460.0,0.03309726]
[1748233719977,0.22342556,109480.0,109460.0,0.03309726]
[1748233723003,0.07754556,109480.0,109460.0,0.03309726]
[1748233723196,0.22342556,109480.0,109460.0,0.03309726]
[1748233724452,0.21742556,109480.0,109460.0,0.03309726]
[1748233729562,0.23322556,109480.0,109460.0,0.03309726]
[1748233729853,0.21742556,109480.0,109460.0,0.03309726]
[1748233730420,0.24952556,109480.0,109460.0,0.03309726]
[1748233731389,0.24352556,109480.0,109460.0,0.03309726]
[1748233731691,0.22782556,109480.0,109460.0,0.03309726]
[1748233731904,0.21142556,109480.0,109460.0,0.03309726]
[1748233732448,0.22752556,109480.0,109460.0,0.03309726]
[1748233733898,0.21142556,109480.0,109460.0,0.03309726]
[1748233734736,0.22682556,109480.0,109460.0,0.03309726]
[1748233735987,0.24332556,109480.0,109460.0,0.00149726]
[1748233736205,0.79318243,109480.0,109460.0,0.00149726]
[1748233738615,0.72763687,109480.0,109460.0,0.00149726]
[1748233740740,0.72763687,109480.0,109460.0,0.01709726]
[1748233740975,0.0309,109490.0,109460.0,0.03289726]
[1748233741174,0.14588,109480.0,109460.0,0.03289726]
[1748233741807,0.14588,109480.0,109450.0,0.02914921]
[1748233742037,0.17728,109480.0,109450.0,0.11874449]
[1748233742651,0.17728,109480.0,109450.0,0.08959528]
[1748233743027,0.17728,109480.0,109450.0,0.09159528]
[1748233743583,0.17728,109480.0,109450.0,0.09259528]
[1748233744199,0.17728,109480.0,109450.0,0.0948791]
[1748233744826,0.17728,109480.0,109450.0,0.1269791]
[1748233745562,0.17128,109480.0,109450.0,0.1269791]
[1748233751298,0.17128,109480.0,109460.0,0.0162]
[1748233751518,0.17128,109480.0,109460.0,0.0314]
[1748233751679,0.17128,109480.0,109450.0,0.1262791]
[1748233752116,0.17128,109480.0,109450.0,0.1252791]
[1748233752318,0.17128,109480.0,109450.0,0.1232791]
[1748233752547,0.17128,109480.0,109450.0,0.15242831]
[1748233752719,0.16528,109480.0,109450.0,0.15242831]
[1748233753918,0.16528,109480.0,109450.0,0.12102831]
[1748233754223,0.16528,109480.0,109450.0,0.15462831]
[1748233754687,0.0314,109480.0,109450.0,0.15462831]
[1748233754860,0.0325,109500.0,109470.0,0.0326]
[1748233755061,0.26792556,109500.0,109470.0,0.0326]
[1748233756196,0.0335,109500.0,109470.0,0.0326]
[1748233757154,0.0316,109490.0,109460.0,0.30363477]
[1748233758038,0.015,109480.0,109460.0,0.30363477]
[1748233758254,0.0311,109480.0,109460.0,0.30363477]
[1748233758455,0.0311,109480.0,109460.0,0.06124921]
[1748233758776,0.0311,109480.0,109460.0,0.06224921]
[1748233759626,0.0251,109480.0,109460.0,0.03014921]
[1748233759823,0.0251,109480.0,109460.0,0.04614921]
[1748233760228,0.0251,109480.0,109460.0,0.04514921]
[1748233760404,0.0251,109480.0,109460.0,0.04614921]
[1748233760790,0.0251,109480.0,109460.0,0.03014921]
[1748233760996,0.0251,109480.0,109460.0,0.001]
[1748233765812,0.0323,109480.0,109460.0,0.001]
[1748233766764,0.0263,109480.0,109460.0,0.001]
[1748233773934,0.0203,109480.0,109460.0,0.0163]
[1748233775816,0.0203,109480.0,109460.0,0.001]
[1748233776343,0.0203,109480.0,109460.0,0.017]
[1748233780903,0.0143,109480.0,109460.0,0.017]
[1748233782213,0.0143,109480.0,109460.0,0.04614921]
[1748233784246,0.0308,109480.0,109460.0,0.04614921]
[1748233787016,0.0158,109470.0,109460.0,0.03014921]
[1748233787806,0.0158,109470.0,109460.0,0.02914921]
[1748233788011,0.0098,109470.0,109460.0,0.02914921]
[1748233788211,0.0098,109470.0,109460.0,0.03014921]
[1748233789267,0.0165,109480.0,109460.0,0.04574921]
[1748233790404,0.0165,109480.0,109460.0,0.04474921]
[1748233790893,0.0165,109480.0,109460.0,0.04574921]
[1748233791094,0.0319,109480.0,109460.0,0.04574921]
[1748233793270,0.72653687,109490.0,109470.0,0.0163]
[1748233793571,0.81608243,109490.0,109470.0,0.0163]
[1748233793956,0.81608243,109490.0,109460.0,0.06224921]
[1748233794557,0.81608243,109490.0,109460.0,0.06124921]
[1748233795973,0.81808243,109490.0,109460.0,0.06124921]
[1748233796206,0.81708243,109490.0,109460.0,0.06124921]
[1748233796331,0.81608243,109490.0,109460.0,0.06124921]
[1748233796682,0.81608243,109490.0,109460.0,0.06224921]
[1748233797701,0.12034556,109490.0,109460.0,0.06224921]
[1748233797906,0.0156,109490.0,109470.0,0.031]
[1748233798114,0.72853687,109500.0,109470.0,0.031]
[1748233798317,0.81808243,109500.0,109470.0,0.031]
[1748233799279,0.001,109490.0,109470.0,0.031]
[1748233800779,0.002,109490.0,109470.0,0.031]
[1748233801433,0.0173,109490.0,109470.0,0.031]
[1748233803544,0.56715687,109490.0,109470.0,0.031]
[1748233803744,0.56715687,109490.0,109470.0,0.0154]
[1748233804597,0.58245687,109490.0,109470.0,0.0154]
[1748233804800,0.67200243,109490.0,109470.0,0.0154]
[1748233805016,0.016,109480.0,109460.0,0.38474921]
[1748233806869,0.016,109480.0,109460.0,0.38574921]
[1748233808070,0.016,109480.0,109460.0,0.40114921]
[1748233809724,0.016,109480.0,109460.0,0.38574921]
[1748233809901,0.0323,109480.0,109460.0,0.38574921]
[1748233810094,0.0263,109480.0,109460.0,0.38574921]
[1748233813214,0.01,109480.0,109460.0,0.38574921]
[1748233813417,0.01,109480.0,109460.0,0.40074921]
[1748233815077,0.65500243,109490.0,109460.0,0.40074921]
[1748233815287,0.67090243,109490.0,109460.0,0.40074921]
[1748233816248,0.67090243,109490.0,109460.0,0.39974921]
[1748233816728,0.67090243,109490.0,109460.0,0.40074921]
[1748233820064,0.17748,109500.0,109480.0,0.0154]
[1748233820277,0.81688243,109500.0,109480.0,0.0154]
[1748233820474,0.80088243,109500.0,109480.0,0.0154]
[1748233820694,0.80088243,109500.0,109480.0,0.0317]
[1748233820893,0.81728243,109500.0,109480.0,0.0154]
[1748233821245,0.63940243,109500.0,109480.0,0.0317]
[1748233821456,0.14588,109490.0,109480.0,0.0317]
[1748233821658,0.0322,109510.0,109490.0,0.016]
[1748233821858,0.0322,109510.0,109490.0,0.0324]
[1748233821859,0.10594556,109510.0,109490.0,0.0324]
[1748233822066,0.14588,109500.0,109490.0,0.0324]
[1748233822261,0.14888,109500.0,109480.0,0.031]
[1748233822482,0.003,109500.0,109480.0,0.031]
[1748233822679,0.006,109500.0,109480.0,0.031]
[1748233822927,0.00349726,109500.0,109480.0,0.031]
[1748233823064,0.01669726,109500.0,109480.0,0.031]
[1748233823270,0.02169726,109500.0,109480.0,0.0312]
[1748233823521,0.02569726,109500.0,109480.0,0.0312]
[1748233823729,0.02169726,109500.0,109480.0,0.0312]
[1748233823887,0.01669726,109500.0,109480.0,0.0312]
[1748233824087,0.01969726,109500.0,109480.0,0.0312]
[1748233824294,0.02269726,109500.0,109480.0,0.0312]
[1748233825526,0.03829726,109500.0,109480.0,0.0153]
[1748233825928,0.03829726,109500.0,109460.0,0.31567784]
[1748233826172,0.03829726,109500.0,109470.0,0.08954556]
[1748233826764,0.03229726,109500.0,109470.0,0.08954556]
[1748233828555,0.0163,109490.0,109470.0,0.08954556]
[1748233829018,0.0163,109490.0,109470.0,0.12034556]
[1748233829885,0.0173,109490.0,109470.0,0.12034556]
[1748233830489,0.0183,109490.0,109470.0,0.12034556]
[1748233831567,0.002,109490.0,109470.0,0.12034556]
[1748233836967,0.002,109490.0,109470.0,0.14944319]
[1748233840228,0.002,109490.0,109470.0,0.13652661]
[1748233840401,0.002,109490.0,109480.0,0.0152]
[1748233841324,0.002,109490.0,109480.0,0.02452683]
[1748233841557,0.001,109490.0,109480.0,0.02452683]
[1748233841862,0.003,109490.0,109480.0,0.02452683]
[1748233842136,0.003,109490.0,109480.0,0.00932683]
[1748233842283,0.006,109490.0,109480.0,0.02482683]
[1748233842511,0.006,109490.0,109480.0,0.0155]
[1748233843691,0.006,109490.0,109480.0,0.0247967]
[1748233845050,0.006,109490.0,109480.0,0.0403967]
[1748233845589,0.006,109490.0,109480.0,0.0247967]
[1748233846722,0.006,109490.0,109480.0,0.0092967]
[1748233846936,0.006,109490.0,109470.0,0.15142661]
[1748233847295,0.006,109490.0,109470.0,0.30398661]
[1748233847495,0.006,109490.0,109470.0,0.29578704]
[1748233847948,0.006,109490.0,109480.0,0.0161]
[1748233848249,0.003,109490.0,109480.0,0.0161]
[1748233848422,0.001,109490.0,109480.0,0.0161]
[1748233848836,0.002,109490.0,109480.0,0.0161]
[1748233849368,0.001,109490.0,109480.0,0.0161]
[1748233849703,0.004,109490.0,109470.0,0.31138704]
[1748233850855,0.007,109490.0,109470.0,0.31138704]
[1748233851066,0.003,109490.0,109470.0,0.31138704]
[1748233851265,0.001,109490.0,109470.0,0.31138704]
[1748233851452,0.002,109490.0,109480.0,0.02909763]
[1748233852305,0.0182,109490.0,109480.0,0.02909763]
[1748233852458,0.0334,109490.0,109480.0,0.02909763]
[1748233852660,0.0324,109490.0,109480.0,0.02909763]
[1748233852981,0.0192,109490.0,109480.0,0.02909763]
[1748233853786,0.006,109490.0,109480.0,0.02909763]
[1748233854168,0.0374,109490.0,109480.0,0.02909763]
[1748233855141,0.0219,109490.0,109480.0,0.02909763]
[1748233861560,0.006,109490.0,109480.0,0.02909763]
[1748233866412,0.006,109490.0,109480.0,0.04549763]
[1748233866859,0.006,109490.0,109480.0,0.02909763]
[1748233869590,0.006,109490.0,109480.0,0.03138089]
[1748233870587,0.006,109490.0,109480.0,0.02909763]
[1748233873017,0.006,109490.0,109480.0,0.03138089]
[1748233873314,0.006,109490.0,109480.0,0.02909763]
[1748233874725,0.006,109490.0,109480.0,0.03138089]
[1748233876658,0.006,109490.0,109480.0,0.02909763]
[1748233879204,0.006,109490.0,109470.0,0.10408641]
[1748233879409,0.0376,109490.0,109470.0,0.10408641]
[1748233880168,0.0346,109490.0,109470.0,0.10408641]
[1748233880634,0.0326,109490.0,109470.0,0.10408641]
[1748233881075,0.0336,109490.0,109470.0,0.10408641]
[1748233881275,0.0336,109490.0,109470.0,0.11331224]
[1748233881653,0.0336,109490.0,109480.0,0.00228327]
[1748233882494,0.0326,109490.0,109480.0,0.00228327]
[1748233882924,0.0356,109490.0,109480.0,0.00228327]
[1748233883831,0.0346,109490.0,109480.0,0.00228327]
[1748233884331,0.0376,109490.0,109480.0,0.00228327]
[1748233886527,0.0376,109490.0,109470.0,0.10408641]
[1748233887435,0.0152,109480.0,109470.0,0.10408641]
[1748233888184,0.0312,109480.0,109470.0,0.08954556]
[1748233888391,0.0319,109470.0,109460.0,0.027365]
[1748233888585,0.0319,109470.0,109450.0,0.15244]
[1748233888813,0.54985687,109490.0,109440.0,0.06870811]
[1748233888814,0.0319,109460.0,109440.0,0.06870811]
[1748233888985,0.0159,109460.0,109450.0,0.15244]
[1748233889936,0.0315,109460.0,109450.0,0.15244]
[1748233890113,0.0315,109460.0,109450.0,0.15248972]
[1748233890312,0.0315,109460.0,109450.0,0.15448972]
[1748233890769,0.0305,109460.0,109450.0,0.15448972]
[1748233891260,0.0305,109460.0,109450.0,0.49648972]
[1748233891463,0.0149,109460.0,109450.0,0.49648972]
[1748233891665,0.0149,109460.0,109450.0,0.52562037]
[1748233892214,0.0089,109460.0,109450.0,0.52562037]
[1748233892392,0.0164,109470.0,109450.0,0.52562037]
[1748233893384,0.0164,109470.0,109450.0,0.52362037]
[1748233893762,0.0166,109480.0,109450.0,0.52362037]
[1748233894408,0.0166,109480.0,109450.0,0.52562037]
[1748233895011,0.0166,109480.0,109450.0,0.52362037]
[1748233895312,0.0319,109470.0,109450.0,0.52562037]
[1748233895522,0.0319,109470.0,109450.0,0.52362037]
[1748233895744,0.0319,109470.0,109450.0,0.52562037]
[1748233896194,0.0319,109470.0,109450.0,0.52362037]
[1748233896601,0.0319,109470.0,109450.0,0.52562037]
[1748233897232,0.0319,109470.0,109450.0,0.52362037]
[1748233897648,0.0319,109470.0,109450.0,0.52562037]
[1748233899972,0.0308,109480.0,109460.0,0.00228376]
[1748233900259,0.0248,109480.0,109460.0,0.00228376]
[1748233901500,0.016,109490.0,109460.0,0.12094556]
[1748233901703,0.016,109490.0,109460.0,0.12322921]
[1748233902320,0.0166,109480.0,109460.0,0.12322921]
[1748233902753,0.0166,109480.0,109460.0,0.15235986]
[1748233904190,0.0166,109480.0,109470.0,0.34]
[1748233905218,0.0319,109480.0,109470.0,0.34]
[1748233905552,0.0329,109480.0,109470.0,0.34]
[1748233906215,0.0339,109480.0,109470.0,0.34]
[1748233907373,0.0279,109480.0,109470.0,0.34]
[1748233913383,0.002,109480.0,109470.0,0.34]
[1748233913956,0.0332,109480.0,109470.0,0.34]
[1748233914329,0.0272,109480.0,109470.0,0.34]
[1748233916897,0.0222,109480.0,109470.0,0.34]
[1748233921240,0.0162,109480.0,109470.0,0.34]
[1748233925162,0.0152,109480.0,109470.0,0.34]
[1748233925364,0.0306,109490.0,109470.0,0.3551]
[1748233926718,0.0316,109490.0,109470.0,0.3551]
[1748233927384,0.0326,109490.0,109470.0,0.3551]
[1748233927768,0.0326,109490.0,109470.0,0.38423065]
[1748233928173,0.017,109490.0,109470.0,0.38423065]
[1748233928375,0.0331,109490.0,109470.0,0.38423065]
[1748233929077,0.002,109490.0,109470.0,0.40023065]
[1748233929444,0.0182,109490.0,109470.0,0.40023065]
[1748233937912,0.0182,109490.0,109470.0,0.38423065]
[1748233938364,0.0332,109490.0,109470.0,0.38423065]
[1748233939952,0.017,109490.0,109470.0,0.36913065]
[1748233940152,0.0161,109480.0,109470.0,0.36913065]
[1748233941317,0.001,109480.0,109470.0,0.36913065]
[1748233941490,0.002,109480.0,109470.0,0.36913065]
[1748233943497,0.0271,109490.0,109470.0,0.36913065]
[1748233943692,0.0271,109490.0,109470.0,0.38563065]
[1748233944575,0.0281,109490.0,109470.0,0.38563065]
[1748233945002,0.0291,109490.0,109470.0,0.38563065]
[1748233948361,0.0291,109490.0,109470.0,0.15706998]
[1748233948863,0.0291,109490.0,109470.0,0.0165]
[1748233949283,0.0181,109490.0,109470.0,0.01878336]
[1748233950179,0.0181,109490.0,109470.0,0.0165]
[1748233951281,0.0181,109490.0,109470.0,0.01878337]
[1748233954648,0.0181,109490.0,109470.0,0.0165]
[1748233957230,0.0181,109490.0,109470.0,0.01878337]
[1748233959370,0.0181,109490.0,109470.0,0.0165]
[1748233960559,0.0181,109490.0,109470.0,0.04563065]
[1748233961436,0.0342,109490.0,109470.0,0.02913065]
[1748233961645,0.0311,109480.0,109470.0,0.02913065]
[1748233963449,0.0321,109480.0,109470.0,0.02913065]
[1748233963868,0.0331,109480.0,109470.0,0.02913065]
[1748233965689,0.0271,109480.0,109470.0,0.02913065]
[1748233965983,0.04352739,109480.0,109470.0,0.02913065]
[1748233966832,0.04352739,109480.0,109460.0,0.36913065]
[1748233967730,0.04152739,109480.0,109460.0,0.36913065]
[1748233967931,0.04152739,109480.0,109460.0,0.37013065]
[1748233969588,0.04152739,109480.0,109460.0,0.37113065]
[1748233970931,0.0251,109480.0,109460.0,0.37113065]
[1748233971230,0.04193849,109480.0,109460.0,0.37113065]
[1748233971477,0.0251,109480.0,109460.0,0.37113065]
[1748233971687,0.0251,109480.0,109460.0,0.38693065]
[1748233972628,0.0191,109480.0,109460.0,0.38693065]
[1748233973291,0.0191,109480.0,109460.0,0.37113065]
[1748233974007,0.0191,109480.0,109460.0,0.40273065]
[1748233975300,0.0191,109480.0,109460.0,0.38623065]
[1748233977721,0.003,109480.0,109460.0,0.40273065]
[1748233977932,0.0312,109490.0,109460.0,0.40273065]
[1748233978131,0.12074556,109490.0,109460.0,0.40273065]
[1748233978930,0.12074556,109490.0,109460.0,0.40173065]
[1748233979104,0.12074556,109490.0,109470.0,0.02913065]
[1748233980321,0.0308,109480.0,109470.0,0.02913065]
[1748233980525,0.0322,109490.0,109470.0,0.02913065]
[1748233980758,0.0332,109490.0,109470.0,0.02913065]
[1748233980963,0.0332,109490.0,109470.0,0.05953065]
[1748233981997,0.0164,109480.0,109470.0,0.02913065]
[1748233983225,0.0184,109480.0,109470.0,0.02913065]
[1748233984712,0.002,109480.0,109470.0,0.02913065]
[1748233986522,0.0176,109480.0,109470.0,0.02913065]
[1748233987559,0.02749069,109530.0,109500.0,0.0324]
[1748233987737,0.02749069,109530.0,109510.0,0.30048265]
[1748233987738,0.04309069,109530.0,109510.0,0.30048265]
[1748233987938,0.02749069,109530.0,109510.0,0.33314096]
[1748233988200,0.02749069,109530.0,109510.0,0.38311436]
[1748233988340,0.02749069,109530.0,109510.0,0.357657]
[1748233988833,0.02798795,109530.0,109520.0,0.02913065]
[1748233990079,0.02798795,109530.0,109520.0,0.03013065]
[1748233990498,0.02798795,109530.0,109520.0,0.03113065]
[1748233990909,0.02798795,109530.0,109520.0,0.002]
[1748233992529,0.02198795,109530.0,109520.0,0.002]
[1748233995077,0.02198795,109530.0,109520.0,0.01649454]
[1748233995620,0.02198795,109530.0,109520.0,0.04949454]
[1748233995826,0.02198795,109530.0,109520.0,0.03299454]
[1748233996353,0.00049726,109530.0,109520.0,0.03299454]
[1748233996894,0.00049726,109530.0,109520.0,0.06035054]
[1748233997594,0.00049726,109530.0,109520.0,0.41893306]
[1748233997830,0.00049726,109530.0,109520.0,0.41665054]
[1748233998029,0.00049726,109530.0,109520.0,0.45062394]
[1748233998612,0.00049726,109530.0,109520.0,0.44962394]
[1748233998847,0.00049726,109530.0,109520.0,0.48349271]
[1748233999291,0.00049726,109530.0,109520.0,0.50012882]
[1748233999522,0.00049726,109530.0,109520.0,0.58967438]
[1748234000245,0.02539726,109560.0,109530.0,0.0993615]
[1748234000463,0.02554643,109560.0,109540.0,0.29808]
[1748234000671,0.02554643,109560.0,109540.0,0.33197273]
[1748234000870,0.02554643,109560.0,109550.0,0.04473638]
[1748234001881,0.01554917,109560.0,109550.0,0.04473638]
[1748234002411,0.01854917,109560.0,109550.0,0.04473638]
[1748234002629,0.01954917,109560.0,109550.0,0.04473638]
[1748234002815,0.01854917,109560.0,109550.0,0.04473638]
[1748234003270,0.02054917,109560.0,109550.0,0.04473638]
[1748234003445,0.02054917,109560.0,109550.0,0.01084365]
[1748234003856,0.02054917,109560.0,109550.0,0.04473638]
[1748234004054,0.00514917,109560.0,109550.0,0.01084365]
[1748234004237,0.00514917,109560.0,109550.0,0.04473638]
[1748234004852,1.12441211,109560.0,109550.0,0.01084365]
[1748234005202,1.11528528,109560.0,109550.0,0.01084365]
[1748234005445,0.0324,109540.0,109530.0,0.01084365]
[1748234005621,0.60982041,109540.0,109530.0,0.01084365]
[1748234006369,0.57742041,109540.0,109510.0,0.30888365]
[1748234006603,0.0312,109530.0,109510.0,0.30888365]
[1748234006804,0.11974556,109530.0,109510.0,0.01084365]
[1748234007008,0.08954556,109530.0,109510.0,0.01084365]
[1748234007229,0.08354556,109530.0,109510.0,0.01084365]
[1748234007462,0.48787485,109550.0,109510.0,0.02614365]
[1748234007672,0.10504556,109540.0,109510.0,0.02614365]
[1748234008593,0.10504556,109540.0,109510.0,0.32418365]
[1748234008796,0.10504556,109540.0,109510.0,0.32718365]
[1748234008944,0.10504556,109540.0,109510.0,0.32418365]
[1748234009474,0.10504556,109540.0,109510.0,0.02614365]
[1748234009691,0.10504556,109540.0,109510.0,0.32418365]
[1748234009897,0.12064556,109540.0,109510.0,0.32418365]
[1748234011738,0.60852041,109540.0,109510.0,0.32418365]
[1748234013019,0.60852041,109540.0,109510.0,0.33864186]
[1748234013431,0.10514556,109540.0,109510.0,0.35504186]
[1748234014440,0.09914556,109540.0,109510.0,0.35504186]
[1748234014756,0.09914556,109540.0,109520.0,0.01084365]
[1748234015801,0.58702041,109540.0,109520.0,0.01084365]
[1748234016008,0.60312041,109540.0,109520.0,0.01084365]
[1748234016211,0.60312041,109540.0,109520.0,0.01184365]
[1748234016415,0.58802041,109540.0,109520.0,0.01184365]
[1748234016805,0.10014556,109540.0,109520.0,0.01184365]
[1748234017529,0.08454556,109540.0,109520.0,0.01184365]
[1748234017948,0.08454556,109540.0,109520.0,0.02630186]
[1748234019218,0.57242041,109540.0,109520.0,0.02630186]
[1748234019557,0.60292041,109540.0,109520.0,0.02630186]
[1748234021404,0.59692041,109540.0,109520.0,0.02630186]
[1748234023799,0.59692041,109540.0,109520.0,0.01184365]
[1748234025307,0.51867485,109530.0,109520.0,0.01184365]
[1748234025511,0.12034556,109530.0,109520.0,0.01184365]
[1748234025740,0.10454556,109530.0,109520.0,0.01184365]
[1748234026155,0.08954556,109530.0,109520.0,0.01184365]
[1748234026589,0.09054556,109530.0,109520.0,0.01184365]
[1748234026792,0.09054556,109530.0,109520.0,0.01084365]
[1748234028537,0.08454556,109530.0,109520.0,0.01084365]
[1748234030939,0.08454556,109530.0,109520.0,0.02530186]
[1748234032869,0.08454556,109530.0,109520.0,0.01445821]
[1748234034137,0.10014556,109530.0,109520.0,0.01445821]
[1748234034886,0.08454556,109530.0,109520.0,0.01445821]
[1748234035617,0.07854556,109530.0,109510.0,0.21361065]
[1748234036779,0.07754556,109530.0,109510.0,0.21361065]
[1748234036985,0.07754556,109530.0,109510.0,0.21461065]
[1748234040778,0.10874556,109530.0,109510.0,0.1532]
[1748234041380,0.10874556,109530.0,109520.0,0.01457314]
[1748234041965,0.59662041,109530.0,109520.0,0.01457314]
[1748234042172,0.66482361,109530.0,109520.0,0.01457314]
[1748234042450,0.6142909,109530.0,109520.0,0.01457314]
[1748234042672,0.61429082,109530.0,109520.0,0.01457314]
[1748234042879,0.64709074,109530.0,109520.0,0.01457314]
[1748234043125,0.65722049,109530.0,109520.0,0.01457314]
[1748234043376,0.0301,109520.0,109510.0,0.01092766]
[1748234043594,0.60752041,109520.0,109510.0,0.01092766]
[1748234044504,0.60752041,109520.0,109480.0,0.299]
[1748234044505,0.0301,109510.0,109490.0,0.01457314]
[1748234044709,0.11964556,109510.0,109500.0,0.00049726]
[1748234046099,0.12064556,109510.0,109500.0,0.00049726]
[1748234048398,0.11464556,109510.0,109500.0,0.00049726]
[1748234052562,0.1405943,109510.0,109500.0,0.00049726]
[1748234053516,0.11464556,109510.0,109500.0,0.00049726]
[1748234053879,0.10554556,109510.0,109500.0,0.00049726]
[1748234054711,0.10554556,109510.0,109500.0,0.0150704]
[1748234055858,0.12144556,109510.0,109500.0,0.00049726]
[1748234056019,0.11544556,109510.0,109500.0,0.00049726]
[1748234056369,0.09054556,109510.0,109500.0,0.00049726]
[1748234056674,0.09054556,109510.0,109500.0,0.01669726]
[1748234056819,0.09054556,109510.0,109500.0,0.00049726]
[1748234057435,0.10674556,109510.0,109500.0,0.00049726]
[1748234058937,0.12264556,109510.0,109490.0,0.0158]
[1748234059209,0.12314282,109510.0,109490.0,0.0158]
[1748234060016,0.0153,109500.0,109490.0,0.001]
[1748234062080,0.0153,109500.0,109480.0,0.04101537]
[1748234062290,0.0303,109500.0,109480.0,0.04101537]
[1748234062843,0.0153,109500.0,109490.0,0.001]
[1748234063252,0.0153,109500.0,109480.0,0.0151]
[1748234063506,0.0153,109500.0,109480.0,0.0201]
[1748234063706,0.0093,109500.0,109480.0,0.0201]
[1748234064054,0.0093,109500.0,109480.0,0.0171]
[1748234065193,0.0093,109500.0,109480.0,0.0151]
[1748234065510,0.0093,109500.0,109490.0,0.001]
[1748234065805,0.0093,109500.0,109480.0,0.0151]
[1748234066204,0.0093,109500.0,109480.0,0.0201]
[1748234066383,0.0093,109500.0,109480.0,0.0181]
[1748234066585,0.0093,109500.0,109480.0,0.0151]
[1748234066751,0.0093,109500.0,109490.0,0.001]
[1748234068883,0.0093,109500.0,109480.0,0.0151]
[1748234069222,0.0093,109500.0,109480.0,0.0181]
[1748234069563,0.0093,109500.0,109480.0,0.034]
[1748234070572,0.0093,109500.0,109480.0,0.036]
[1748234071348,0.0033,109500.0,109480.0,0.036]
[1748234071803,0.0033,109500.0,109480.0,0.06507462]
[1748234074361,0.59362041,109490.0,109480.0,0.03407462]
[1748234074547,0.60882041,109490.0,109480.0,0.03407462]
[1748234075315,0.60882041,109490.0,109480.0,0.03107462]
[1748234075516,0.60882041,109490.0,109480.0,0.02907462]
[1748234075822,0.60882041,109490.0,109480.0,0.005]
[1748234076944,0.60882041,109490.0,109480.0,0.002]
[1748234077199,0.0315,109480.0,109450.0,0.05947462]
[1748234077374,0.12004556,109480.0,109450.0,0.05947462]
[1748234077600,0.12004556,109480.0,109450.0,0.0304]
[1748234079077,0.12004556,109480.0,109450.0,0.0354]
[1748234079457,0.12004556,109480.0,109450.0,0.0414]
[1748234080155,0.11404556,109480.0,109450.0,0.0414]
[1748234080562,0.11404556,109480.0,109450.0,0.0354]
[1748234080802,0.11404556,109480.0,109450.0,0.0394]
[1748234082308,0.11404556,109480.0,109450.0,0.0344]
[1748234082688,0.11404556,109480.0,109450.0,0.0374]
[1748234083888,0.11404556,109480.0,109460.0,0.0157]
[1748234085664,0.11404556,109480.0,109460.0,0.0177]
[1748234085859,0.11404556,109480.0,109460.0,0.0197]
[1748234086566,0.11404556,109480.0,109460.0,0.0359]
[1748234087829,0.10804556,109480.0,109460.0,0.0359]
[1748234087976,0.08954556,109480.0,109460.0,0.0359]
[1748234093007,0.7114,109500.0,109480.0,0.0154]